[Event "Early-Titled-Tuesday-Blitz-October-03-2023"]
[Site "Chess.com"]
[Date "2023.10.03"]
[Round "5"]
[White "Malysch"]
[Black "Javylavilla"]
[Result "1-0"]
[WhiteElo "2567"]
[BlackElo "2366"]
[TimeControl "180+1"]
[EndTime "8:55:30 PDT"]
[Termination "Malysch won by resignation"]

1. d4 {[%clk 0:02:56.5]} 1... Nf6 {[%clk 0:02:59.3]} 2. c4 {[%clk 0:02:56.5]}
2... c5 {[%clk 0:02:58.5]} 3. d5 {[%clk 0:02:56]} 3... b5 {[%clk 0:02:58.9]} 4.
cxb5 {[%clk 0:02:56.6]} 4... a6 {[%clk 0:02:59.1]} 5. bxa6 {[%clk 0:02:57.5]}
5... g6 {[%clk 0:02:58.7]} 6. Nc3 {[%clk 0:02:58.4]} 6... Bg7 {[%clk 0:02:58.9]}
7. Nf3 {[%clk 0:02:55.3]} 7... O-O {[%clk 0:02:58.9]} 8. a7 {[%clk 0:02:55.6]}
8... Rxa7 {[%clk 0:02:58.4]} 9. e4 {[%clk 0:02:56.1]} 9... Qa5 {[%clk
0:02:57.9]} 10. Bd2 {[%clk 0:02:55.3]} 10... Ba6 {[%clk 0:02:57.1]} 11. Nb5
{[%clk 0:02:35.9]} 11... Qb6 {[%clk 0:02:49.4]} 12. Nxa7 {[%clk 0:02:35.3]}
12... Qxa7 {[%clk 0:02:49.6]} 13. Qc2 {[%clk 0:02:18.9]} 13... e6 {[%clk
0:02:40.6]} 14. dxe6 {[%clk 0:02:12.4]} 14... fxe6 {[%clk 0:02:40.2]} 15. Bd3
{[%clk 0:01:48.7]} 15... d5 {[%clk 0:02:27]} 16. exd5 {[%clk 0:01:49.6]} 16...
exd5 {[%clk 0:02:25.4]} 17. O-O {[%clk 0:01:46.8]} 17... c4 {[%clk 0:02:21.5]}
18. Be2 {[%clk 0:01:43.2]} 18... Ne4 {[%clk 0:02:21.2]} 19. Be3 {[%clk
0:01:39.9]} 19... Qe7 {[%clk 0:02:04.9]} 20. Rad1 {[%clk 0:01:29.2]} 20... Bb7
{[%clk 0:01:55.2]} 21. Rfe1 {[%clk 0:01:25.9]} 21... Nc6 {[%clk 0:01:54.5]} 22.
Bxc4 {[%clk 0:01:17.1]} 22... dxc4 {[%clk 0:01:48.7]} 23. Qxc4+ {[%clk 0:01:18]}
23... Kh8 {[%clk 0:01:48.8]} 24. Bg5 {[%clk 0:01:12]} 24... Nxg5 {[%clk
0:01:13.9]} 25. Rxe7 {[%clk 0:01:08.7]} 25... Nxf3+ {[%clk 0:01:14.1]} 26. gxf3
{[%clk 0:01:08.9]} 26... Nxe7 {[%clk 0:01:15]} 27. Rd7 {[%clk 0:01:00.2]} 27...
Rc8 {[%clk 0:00:44.2]} 28. Qf7 {[%clk 0:00:36.8]} 28... Bxf3 {[%clk 0:00:27.1]}
29. Qxf3 {[%clk 0:00:32.4]} 29... Nf5 {[%clk 0:00:27.5]} 30. b4 {[%clk
0:00:16.9]} 30... Rc1+ {[%clk 0:00:26.2]} 31. Rd1 {[%clk 0:00:16.8]} 31... Rc3
{[%clk 0:00:14.1]} 32. Qa8+ {[%clk 0:00:15.7]} 1-0

[Event "Early-Titled-Tuesday-Blitz-October-03-2023"]
[Site "Chess.com"]
[Date "2023.10.03"]
[Round "5"]
[White "Vaathi_Coming"]
[Black "Beca95"]
[Result "1-0"]
[WhiteElo "2885"]
[BlackElo "3016"]
[TimeControl "180+1"]
[EndTime "8:55:36 PDT"]
[Termination "Vaathi_Coming won by resignation"]

1. Nf3 {[%clk 0:02:59.9]} 1... c5 {[%clk 0:02:58.5]} 2. e3 {[%clk 0:02:57.5]}
2... g6 {[%clk 0:02:56.5]} 3. d4 {[%clk 0:02:57.4]} 3... Bg7 {[%clk 0:02:57.2]}
4. c4 {[%clk 0:02:56.5]} 4... Nf6 {[%clk 0:02:56.7]} 5. d5 {[%clk 0:02:56.5]}
5... O-O {[%clk 0:02:56.4]} 6. Nc3 {[%clk 0:02:56.5]} 6... d6 {[%clk 0:02:56.9]}
7. Be2 {[%clk 0:02:54.9]} 7... e6 {[%clk 0:02:57.3]} 8. e4 {[%clk 0:02:46.9]}
8... exd5 {[%clk 0:02:57]} 9. cxd5 {[%clk 0:02:39.9]} 9... Re8 {[%clk
0:02:56.5]} 10. Nd2 {[%clk 0:02:39.8]} 10... Nbd7 {[%clk 0:02:53.6]} 11. O-O
{[%clk 0:02:38.9]} 11... Ne5 {[%clk 0:02:52.9]} 12. a4 {[%clk 0:02:30.1]} 12...
g5 {[%clk 0:02:51.9]} 13. Ra3 {[%clk 0:02:21.6]} 13... h6 {[%clk 0:02:45.2]} 14.
Re1 {[%clk 0:02:07.3]} 14... a6 {[%clk 0:02:42.6]} 15. Nf1 {[%clk 0:02:04.1]}
15... Rb8 {[%clk 0:02:39.4]} 16. a5 {[%clk 0:02:03.2]} 16... Ng6 {[%clk
0:02:38.7]} 17. f3 {[%clk 0:01:55.2]} 17... Bd7 {[%clk 0:02:33.9]} 18. Ne3
{[%clk 0:01:54.6]} 18... Nh5 {[%clk 0:02:30.6]} 19. Bf1 {[%clk 0:01:47.6]} 19...
Bd4 {[%clk 0:02:28.4]} 20. Ne2 {[%clk 0:01:45.7]} 20... Bg7 {[%clk 0:02:24.2]}
21. Ng3 {[%clk 0:01:11.5]} 21... Nxg3 {[%clk 0:02:18.4]} 22. hxg3 {[%clk
0:01:12.4]} 22... Bd4 {[%clk 0:02:15.6]} 23. Kh2 {[%clk 0:01:11.4]} 23... Qf6
{[%clk 0:02:14.8]} 24. Nc4 {[%clk 0:01:03.6]} 24... Bb5 {[%clk 0:02:11.8]} 25.
Nb6 {[%clk 0:00:57]} 25... Re7 {[%clk 0:02:09.5]} 26. Rb3 {[%clk 0:00:49.3]}
26... Bxf1 {[%clk 0:02:05.3]} 27. Rxf1 {[%clk 0:00:50.2]} 27... h5 {[%clk
0:02:05.6]} 28. f4 {[%clk 0:00:41.8]} 28... g4 {[%clk 0:01:46.5]} 29. e5 {[%clk
0:00:35.3]} 29... dxe5 {[%clk 0:01:46.4]} 30. f5 {[%clk 0:00:35.5]} 30... Nf4
{[%clk 0:01:46.3]} 31. d6 {[%clk 0:00:26.3]} 31... c4 {[%clk 0:01:36.7]} 32.
dxe7 {[%clk 0:00:23.7]} 32... Qxe7 {[%clk 0:01:25]} 33. Nxc4 {[%clk 0:00:21.6]}
33... Rd8 {[%clk 0:01:19.8]} 34. Qe1 {[%clk 0:00:18.9]} 34... Nd5 {[%clk
0:01:20]} 35. f6 {[%clk 0:00:17.6]} 35... Qe6 {[%clk 0:01:19.1]} 36. Qd2 {[%clk
0:00:17.2]} 36... Nf4 {[%clk 0:01:16.1]} 37. Qc2 {[%clk 0:00:09.7]} 37... Rc8
{[%clk 0:01:02.7]} 38. Rxb7 {[%clk 0:00:09.7]} 38... Ng6 {[%clk 0:01:00.4]} 39.
b3 {[%clk 0:00:07.2]} 39... h4 {[%clk 0:01:00.8]} 40. Qf5 {[%clk 0:00:06.3]}
40... hxg3+ {[%clk 0:01:00.2]} 41. Kxg3 {[%clk 0:00:07.2]} 41... Qd5 {[%clk
0:00:59.8]} 42. Qxg6+ {[%clk 0:00:04.9]} 42... fxg6 {[%clk 0:00:53.3]} 43. f7+
{[%clk 0:00:05.8]} 43... Kh8 {[%clk 0:00:52.9]} 44. f8=Q+ {[%clk 0:00:05.1]}
44... Rxf8 {[%clk 0:00:50.9]} 45. Rxf8+ {[%clk 0:00:06]} 45... Qg8 {[%clk
0:00:51.1]} 46. Rxg8+ {[%clk 0:00:06.1]} 1-0

[Event "Early-Titled-Tuesday-Blitz-October-03-2023"]
[Site "Chess.com"]
[Date "2023.10.03"]
[Round "5"]
[White "jasonbolivar"]
[Black "Henryk_S"]
[Result "0-1"]
[WhiteElo "2232"]
[BlackElo "2148"]
[TimeControl "180+1"]
[EndTime "8:55:36 PDT"]
[Termination "Henryk_S won on time"]

1. e4 {[%clk 0:03:00.9]} 1... e6 {[%clk 0:02:59.3]} 2. d4 {[%clk 0:02:59.5]}
2... d5 {[%clk 0:02:59.8]} 3. Nc3 {[%clk 0:02:59.4]} 3... Nf6 {[%clk 0:02:59.2]}
4. Bg5 {[%clk 0:02:57.8]} 4... Be7 {[%clk 0:02:59.2]} 5. e5 {[%clk 0:02:58.1]}
5... Nfd7 {[%clk 0:02:59.3]} 6. h4 {[%clk 0:02:58.1]} 6... a6 {[%clk 0:02:58.6]}
7. Nce2 {[%clk 0:02:44]} 7... c5 {[%clk 0:02:51.1]} 8. c3 {[%clk 0:02:43]} 8...
Nc6 {[%clk 0:02:51.3]} 9. Nf3 {[%clk 0:02:41.8]} 9... h6 {[%clk 0:02:45.4]} 10.
Bxe7 {[%clk 0:02:38.3]} 10... Qxe7 {[%clk 0:02:46.3]} 11. Qd2 {[%clk 0:02:30.4]}
11... b5 {[%clk 0:02:40.9]} 12. Nf4 {[%clk 0:02:09.9]} 12... cxd4 {[%clk
0:02:35.4]} 13. cxd4 {[%clk 0:02:04.4]} 13... Qb4 {[%clk 0:02:31.7]} 14. a3
{[%clk 0:01:56.1]} 14... Qxd2+ {[%clk 0:02:30]} 15. Kxd2 {[%clk 0:01:54.5]}
15... Na5 {[%clk 0:02:29.6]} 16. Ke3 {[%clk 0:01:33.4]} 16... Nb6 {[%clk
0:02:26.7]} 17. Nd2 {[%clk 0:01:29.5]} 17... Nac4+ {[%clk 0:02:17.8]} 18. Bxc4
{[%clk 0:01:24.5]} 18... dxc4 {[%clk 0:02:08.9]} 19. Ne4 {[%clk 0:01:12.7]}
19... Ke7 {[%clk 0:02:06.7]} 20. Nd6 {[%clk 0:01:06]} 20... Bd7 {[%clk
0:02:04.5]} 21. g4 {[%clk 0:00:58.5]} 21... Bc6 {[%clk 0:02:04]} 22. f3 {[%clk
0:00:56.8]} 22... Nd5+ {[%clk 0:02:02.4]} 23. Nxd5+ {[%clk 0:00:51.6]} 23...
Bxd5 {[%clk 0:02:03.3]} 24. Ne4 {[%clk 0:00:46.3]} 24... a5 {[%clk 0:01:53]} 25.
Rhc1 {[%clk 0:00:27.1]} 25... Rab8 {[%clk 0:01:27.7]} 26. Nc3 {[%clk 0:00:20.4]}
26... Rhc8 {[%clk 0:01:10.9]} 27. h5 {[%clk 0:00:19.9]} 27... Rc7 {[%clk
0:00:57.7]} 28. f4 {[%clk 0:00:18.5]} 28... b4 {[%clk 0:00:53.2]} 29. axb4
{[%clk 0:00:17.8]} 29... axb4 {[%clk 0:00:54.1]} 30. Nxd5+ {[%clk 0:00:01.4]}
30... exd5 {[%clk 0:00:53.2]} 31. Ra5 {[%clk 0:00:02.3]} 31... Rd7 {[%clk
0:00:31.6]} 32. f5 {[%clk 0:00:01.2]} 32... Rb6 {[%clk 0:00:25.5]} 33. Rca1
{[%clk 0:00:01.1]} 33... c3 {[%clk 0:00:24.7]} 0-1

[Event "Early-Titled-Tuesday-Blitz-October-03-2023"]
[Site "Chess.com"]
[Date "2023.10.03"]
[Round "5"]
[White "LeoLV10"]
[Black "Kopytkin"]
[Result "1-0"]
[WhiteElo "2578"]
[BlackElo "2392"]
[TimeControl "180+1"]
[EndTime "8:55:41 PDT"]
[Termination "LeoLV10 won on time"]

1. e4 {[%clk 0:03:00.9]} 1... Nf6 {[%clk 0:02:54.7]} 2. e5 {[%clk 0:03:01]} 2...
Nd5 {[%clk 0:02:54]} 3. c4 {[%clk 0:03:01.5]} 3... Nb6 {[%clk 0:02:53.7]} 4. d4
{[%clk 0:03:02.2]} 4... d6 {[%clk 0:02:53.9]} 5. exd6 {[%clk 0:03:03.1]} 5...
cxd6 {[%clk 0:02:53.7]} 6. Nc3 {[%clk 0:03:03.7]} 6... g6 {[%clk 0:02:54.2]} 7.
Be3 {[%clk 0:03:03.6]} 7... Bg7 {[%clk 0:02:54.5]} 8. Rc1 {[%clk 0:03:04.3]}
8... O-O {[%clk 0:02:54.8]} 9. Be2 {[%clk 0:03:04.8]} 9... Bf5 {[%clk
0:02:48.1]} 10. Nf3 {[%clk 0:03:03.7]} 10... d5 {[%clk 0:02:42.2]} 11. c5 {[%clk
0:03:03.4]} 11... Nc8 {[%clk 0:02:41.9]} 12. O-O {[%clk 0:03:03.2]} 12... Bg4
{[%clk 0:02:41.3]} 13. h3 {[%clk 0:03:01.9]} 13... Bxf3 {[%clk 0:02:41.1]} 14.
Bxf3 {[%clk 0:03:02.8]} 14... e6 {[%clk 0:02:41.6]} 15. b4 {[%clk 0:03:01.4]}
15... Ne7 {[%clk 0:02:26.6]} 16. b5 {[%clk 0:02:59.5]} 16... Nf5 {[%clk
0:02:24.6]} 17. Ne2 {[%clk 0:02:52.1]} 17... Qa5 {[%clk 0:01:58.9]} 18. a4
{[%clk 0:02:45.1]} 18... Nh4 {[%clk 0:01:57]} 19. Nc3 {[%clk 0:02:42.6]} 19...
Qb4 {[%clk 0:01:48.6]} 20. Be2 {[%clk 0:02:18.6]} 20... Nf5 {[%clk 0:01:47.2]}
21. Na2 {[%clk 0:01:46.3]} 21... Qa3 {[%clk 0:01:27.3]} 22. Qd2 {[%clk
0:01:39.3]} 22... Qxa4 {[%clk 0:01:20.6]} 23. Nc3 {[%clk 0:01:35.2]} 23... Qa5
{[%clk 0:01:02.8]} 24. Ra1 {[%clk 0:01:31]} 24... Qd8 {[%clk 0:01:00.6]} 25.
Rfb1 {[%clk 0:01:24.8]} 25... Nd7 {[%clk 0:00:14.4]} 26. c6 {[%clk 0:01:22]}
26... bxc6 {[%clk 0:00:10.5]} 27. bxc6 {[%clk 0:01:22.4]} 27... Nb6 {[%clk
0:00:10.8]} 28. Nb5 {[%clk 0:01:21.6]} 28... Nd6 {[%clk 0:00:08.1]} 29. Bf4
{[%clk 0:01:00.2]} 29... Ndc4 {[%clk 0:00:07.6]} 30. Qc3 {[%clk 0:00:54.6]}
30... e5 {[%clk 0:00:07.9]} 31. dxe5 {[%clk 0:00:51.5]} 31... Qe7 {[%clk
0:00:06.4]} 32. Bxc4 {[%clk 0:00:48.7]} 32... dxc4 {[%clk 0:00:05.9]} 33. Bg3
{[%clk 0:00:41.7]} 33... Rfc8 {[%clk 0:00:05.3]} 34. c7 {[%clk 0:00:36.4]} 34...
Qc5 {[%clk 0:00:05.3]} 35. Ra5 {[%clk 0:00:31.9]} 35... Nd5 {[%clk 0:00:05.5]}
36. Qa1 {[%clk 0:00:29.1]} 36... Nxc7 {[%clk 0:00:04.7]} 37. Nxa7 {[%clk
0:00:27.5]} 1-0

[Event "Early-Titled-Tuesday-Blitz-October-03-2023"]
[Site "Chess.com"]
[Date "2023.10.03"]
[Round "5"]
[White "Lady_Nika"]
[Black "IngOscarArdila"]
[Result "1-0"]
[WhiteElo "2538"]
[BlackElo "2329"]
[TimeControl "180+1"]
[EndTime "8:55:43 PDT"]
[Termination "Lady_Nika won by checkmate"]

1. e4 {[%clk 0:03:00.9]} 1... e5 {[%clk 0:02:58.7]} 2. Nf3 {[%clk 0:03:00.8]}
2... Nf6 {[%clk 0:02:58.5]} 3. Nxe5 {[%clk 0:03:00.3]} 3... d6 {[%clk
0:02:58.4]} 4. Nf3 {[%clk 0:03:00.4]} 4... Nxe4 {[%clk 0:02:58.7]} 5. d3 {[%clk
0:03:00.8]} 5... Nf6 {[%clk 0:02:57.8]} 6. d4 {[%clk 0:03:01.4]} 6... Bg4 {[%clk
0:02:54.5]} 7. Be2 {[%clk 0:03:01.5]} 7... Be7 {[%clk 0:02:54.5]} 8. O-O {[%clk
0:03:01.6]} 8... O-O {[%clk 0:02:54.6]} 9. h3 {[%clk 0:03:01.8]} 9... Bh5 {[%clk
0:02:54.5]} 10. b3 {[%clk 0:03:01.9]} 10... Re8 {[%clk 0:02:54.3]} 11. Bb2
{[%clk 0:03:02.1]} 11... Nbd7 {[%clk 0:02:52.8]} 12. c4 {[%clk 0:03:02.3]} 12...
Ne4 {[%clk 0:02:52]} 13. Nc3 {[%clk 0:03:01.5]} 13... Nxc3 {[%clk 0:02:50]} 14.
Bxc3 {[%clk 0:03:01.5]} 14... Nf6 {[%clk 0:02:50.1]} 15. Qc2 {[%clk 0:02:59.1]}
15... Qd7 {[%clk 0:02:47.7]} 16. d5 {[%clk 0:02:54.8]} 16... Bg6 {[%clk
0:02:39.7]} 17. Bd3 {[%clk 0:02:54.1]} 17... Nh5 {[%clk 0:02:34.4]} 18. Rae1
{[%clk 0:02:49]} 18... Bf6 {[%clk 0:02:11.8]} 19. Bxg6 {[%clk 0:02:47.6]} 19...
hxg6 {[%clk 0:02:09.2]} 20. Bd2 {[%clk 0:02:33.2]} 20... Be5 {[%clk 0:01:30.6]}
21. Nxe5 {[%clk 0:02:30.7]} 21... dxe5 {[%clk 0:01:30.3]} 22. Bc3 {[%clk
0:02:29.3]} 22... Qd6 {[%clk 0:01:12.4]} 23. Qb2 {[%clk 0:02:26.8]} 23... f6
{[%clk 0:01:09.8]} 24. Re4 {[%clk 0:02:25.9]} 24... Nf4 {[%clk 0:01:03]} 25. Kh2
{[%clk 0:02:11.9]} 25... Kf7 {[%clk 0:00:59.2]} 26. g3 {[%clk 0:02:10.4]} 26...
Nd3 {[%clk 0:00:54.8]} 27. Qe2 {[%clk 0:02:09.8]} 27... Nc5 {[%clk 0:00:54.7]}
28. Re3 {[%clk 0:02:09.9]} 28... a5 {[%clk 0:00:45.4]} 29. Kg2 {[%clk 0:02:01]}
29... e4 {[%clk 0:00:37.5]} 30. f3 {[%clk 0:02:00.4]} 30... exf3+ {[%clk
0:00:32.8]} 31. Rfxf3 {[%clk 0:01:59.5]} 31... f5 {[%clk 0:00:28.1]} 32. Ba1
{[%clk 0:01:57.1]} 32... Rxe3 {[%clk 0:00:17.9]} 33. Rxe3 {[%clk 0:01:56.9]}
33... Ne4 {[%clk 0:00:18]} 34. Qf3 {[%clk 0:01:50.5]} 34... Re8 {[%clk
0:00:16.7]} 35. g4 {[%clk 0:01:50.5]} 35... Ng5 {[%clk 0:00:06.8]} 36. Qe2
{[%clk 0:01:47.1]} 36... Rxe3 {[%clk 0:00:06.1]} 37. Qxe3 {[%clk 0:01:47.2]}
37... Ne4 {[%clk 0:00:06.7]} 38. Qf3 {[%clk 0:01:44.6]} 38... Qd7 {[%clk
0:00:06]} 39. Bd4 {[%clk 0:01:42.5]} 39... Kg8 {[%clk 0:00:05.5]} 40. Qf4 {[%clk
0:01:40.6]} 40... c6 {[%clk 0:00:05.6]} 41. Qe5 {[%clk 0:01:37.7]} 41... cxd5
{[%clk 0:00:05]} 42. cxd5 {[%clk 0:01:37.7]} 42... b5 {[%clk 0:00:05.2]} 43.
gxf5 {[%clk 0:01:34.6]} 43... gxf5 {[%clk 0:00:05.2]} 44. h4 {[%clk 0:01:34.9]}
44... Kh7 {[%clk 0:00:05.3]} 45. h5 {[%clk 0:01:34.5]} 45... Qf7 {[%clk
0:00:04.5]} 46. d6 {[%clk 0:01:30.6]} 46... Nf6 {[%clk 0:00:03.4]} 47. Qxf5+
{[%clk 0:01:28.2]} 47... Kh8 {[%clk 0:00:03]} 48. Bxf6 {[%clk 0:01:28.1]} 48...
gxf6 {[%clk 0:00:03.1]} 49. d7 {[%clk 0:01:28.2]} 49... Qe7 {[%clk 0:00:01.1]}
50. Qd3 {[%clk 0:01:26.2]} 50... Qd8 {[%clk 0:00:01.3]} 51. Qd5 {[%clk 0:01:24]}
51... Kg7 {[%clk 0:00:02]} 52. Kf3 {[%clk 0:01:23.5]} 52... Kh6 {[%clk
0:00:02.1]} 53. Qf7 {[%clk 0:01:21]} 53... Kg5 {[%clk 0:00:01.3]} 54. Qg6+
{[%clk 0:01:21.2]} 54... Kh4 {[%clk 0:00:01]} 55. Qg4# {[%clk 0:01:21.3]} 1-0

[Event "Early-Titled-Tuesday-Blitz-October-03-2023"]
[Site "Chess.com"]
[Date "2023.10.03"]
[Round "5"]
[White "meoluoi91"]
[Black "Defenstrator"]
[Result "0-1"]
[WhiteElo "2611"]
[BlackElo "2454"]
[TimeControl "180+1"]
[EndTime "8:55:45 PDT"]
[Termination "Defenstrator won by checkmate"]

1. e4 {[%clk 0:02:48]} 1... c5 {[%clk 0:02:58.5]} 2. Nf3 {[%clk 0:02:43.3]} 2...
Nc6 {[%clk 0:02:52.8]} 3. c3 {[%clk 0:02:42.7]} 3... f5 {[%clk 0:02:37.1]} 4.
exf5 {[%clk 0:02:38.8]} 4... d5 {[%clk 0:02:35.9]} 5. Bd3 {[%clk 0:02:37.4]}
5... Nh6 {[%clk 0:02:25.3]} 6. O-O {[%clk 0:02:27.1]} 6... Bxf5 {[%clk
0:02:18.5]} 7. Bxf5 {[%clk 0:02:24.9]} 7... Nxf5 {[%clk 0:02:19.3]} 8. Re1
{[%clk 0:02:25.5]} 8... g6 {[%clk 0:02:04.6]} 9. Qb3 {[%clk 0:02:18]} 9... Qd6
{[%clk 0:01:30.7]} 10. Qxb7 {[%clk 0:01:53]} 10... Rb8 {[%clk 0:01:30.1]} 11.
Qa6 {[%clk 0:01:51.4]} 11... Bg7 {[%clk 0:01:22.7]} 12. Qe2 {[%clk 0:01:27.4]}
12... e5 {[%clk 0:01:11.5]} 13. d3 {[%clk 0:01:27.2]} 13... O-O {[%clk
0:01:05.9]} 14. Na3 {[%clk 0:01:26]} 14... e4 {[%clk 0:00:56.5]} 15. dxe4 {[%clk
0:01:24.3]} 15... Rbe8 {[%clk 0:00:55.9]} 16. Qd1 {[%clk 0:01:07.2]} 16... dxe4
{[%clk 0:00:51.3]} 17. Qb3+ {[%clk 0:01:02.3]} 17... Kh8 {[%clk 0:00:48.1]} 18.
Ng5 {[%clk 0:01:01.3]} 18... e3 {[%clk 0:00:29.7]} 19. Bxe3 {[%clk 0:00:51.5]}
19... Nxe3 {[%clk 0:00:28.7]} 20. Rxe3 {[%clk 0:00:51.2]} 20... Rxe3 {[%clk
0:00:27.8]} 21. fxe3 {[%clk 0:00:51.6]} 21... Qe7 {[%clk 0:00:25.6]} 22. Qd5
{[%clk 0:00:44.5]} 22... Qxe3+ {[%clk 0:00:20.2]} 23. Kh1 {[%clk 0:00:45]} 23...
Ne5 {[%clk 0:00:12.6]} 24. Ne6 {[%clk 0:00:37.6]} 24... Ng4 {[%clk 0:00:10.8]}
25. h3 {[%clk 0:00:15.3]} 25... Nf2+ {[%clk 0:00:11.3]} 26. Kh2 {[%clk
0:00:15.1]} 26... Be5+ {[%clk 0:00:12]} 27. Kg1 {[%clk 0:00:12.8]} 27... Nxh3+
{[%clk 0:00:09.1]} 28. Kh1 {[%clk 0:00:13]} 28... Qg1+ {[%clk 0:00:09.6]} 29.
Rxg1 {[%clk 0:00:10.8]} 29... Nf2# {[%clk 0:00:10.5]} 0-1

[Event "Early-Titled-Tuesday-Blitz-October-03-2023"]
[Site "Chess.com"]
[Date "2023.10.03"]
[Round "5"]
[White "zozik"]
[Black "vladgoncharov"]
[Result "1-0"]
[WhiteElo "2345"]
[BlackElo "2511"]
[TimeControl "180+1"]
[EndTime "8:55:45 PDT"]
[Termination "zozik won by resignation"]

1. d4 {[%clk 0:03:00.9]} 1... Nf6 {[%clk 0:02:58.1]} 2. Nf3 {[%clk 0:02:57.2]}
2... e6 {[%clk 0:02:57.9]} 3. g3 {[%clk 0:02:57.6]} 3... c5 {[%clk 0:02:57.8]}
4. Bg2 {[%clk 0:02:58.5]} 4... cxd4 {[%clk 0:02:57.2]} 5. O-O {[%clk 0:02:57.8]}
5... Nc6 {[%clk 0:02:56.9]} 6. Nxd4 {[%clk 0:02:56]} 6... Be7 {[%clk 0:02:46.6]}
7. c4 {[%clk 0:02:53.3]} 7... d5 {[%clk 0:02:32.6]} 8. cxd5 {[%clk 0:02:50.5]}
8... exd5 {[%clk 0:02:32.2]} 9. Nc3 {[%clk 0:02:48.2]} 9... O-O {[%clk
0:02:31.5]} 10. Be3 {[%clk 0:02:40.7]} 10... Bg4 {[%clk 0:02:19]} 11. Rc1 {[%clk
0:02:37.2]} 11... Qd7 {[%clk 0:02:12.7]} 12. Qd2 {[%clk 0:02:30.6]} 12... Bh3
{[%clk 0:02:09.8]} 13. Rfd1 {[%clk 0:02:26.3]} 13... Bxg2 {[%clk 0:02:09.3]} 14.
Kxg2 {[%clk 0:02:25.5]} 14... Rfe8 {[%clk 0:02:09.4]} 15. Qd3 {[%clk 0:02:12.7]}
15... g6 {[%clk 0:01:49.8]} 16. Bg5 {[%clk 0:02:02.5]} 16... Rad8 {[%clk
0:01:35.2]} 17. Qf3 {[%clk 0:01:53.1]} 17... Ne4 {[%clk 0:01:04.8]} 18. Bxe7
{[%clk 0:01:35.1]} 18... Qxe7 {[%clk 0:01:01.6]} 19. Nxc6 {[%clk 0:01:29.5]}
19... bxc6 {[%clk 0:01:01.3]} 20. Nxe4 {[%clk 0:01:29.4]} 20... Qxe4 {[%clk
0:00:53]} 21. Qxe4 {[%clk 0:01:29]} 21... Rxe4 {[%clk 0:00:52.1]} 22. e3 {[%clk
0:01:27.1]} 22... Rb4 {[%clk 0:00:52.1]} 23. b3 {[%clk 0:01:25.2]} 23... Rb6
{[%clk 0:00:51.9]} 24. Rc5 {[%clk 0:01:24.5]} 24... Ra6 {[%clk 0:00:48.3]} 25.
Rd2 {[%clk 0:01:23.7]} 25... Kf8 {[%clk 0:00:45]} 26. e4 {[%clk 0:01:21]} 26...
Ke7 {[%clk 0:00:36.4]} 27. exd5 {[%clk 0:01:20.8]} 27... cxd5 {[%clk 0:00:36.6]}
28. Rc7+ {[%clk 0:01:16.8]} 28... Kf6 {[%clk 0:00:34.6]} 29. a4 {[%clk
0:01:10.8]} 29... Rdd6 {[%clk 0:00:32.1]} 30. Rd4 {[%clk 0:01:07.2]} 30... Rab6
{[%clk 0:00:31.8]} 31. b4 {[%clk 0:00:59.5]} 31... g5 {[%clk 0:00:26.3]} 32.
Rxa7 {[%clk 0:00:57.8]} 32... Rbc6 {[%clk 0:00:21.5]} 33. b5 {[%clk 0:00:56.9]}
33... Rc2 {[%clk 0:00:20.1]} 34. a5 {[%clk 0:00:55.2]} 34... Ke5 {[%clk
0:00:19.4]} 35. Rd1 {[%clk 0:00:49.9]} 35... Rf6 {[%clk 0:00:18.7]} 36. Rf1
{[%clk 0:00:46.1]} 36... Rb2 {[%clk 0:00:17]} 37. b6 {[%clk 0:00:46.1]} 37... d4
{[%clk 0:00:17.4]} 38. b7 {[%clk 0:00:44]} 38... Kd5 {[%clk 0:00:12.2]} 39. a6
{[%clk 0:00:44.1]} 39... d3 {[%clk 0:00:12.4]} 40. Ra8 {[%clk 0:00:43.1]} 40...
Rfb6 {[%clk 0:00:12.9]} 41. Rd8+ {[%clk 0:00:37.8]} 41... Ke4 {[%clk 0:00:12.5]}
42. a7 {[%clk 0:00:38]} 42... Rxb7 {[%clk 0:00:12.2]} 43. a8=Q {[%clk
0:00:38.1]} 1-0

[Event "Early-Titled-Tuesday-Blitz-October-03-2023"]
[Site "Chess.com"]
[Date "2023.10.03"]
[Round "5"]
[White "KorolDimitriy75"]
[Black "JiiHart"]
[Result "0-1"]
[WhiteElo "2379"]
[BlackElo "2198"]
[TimeControl "180+1"]
[EndTime "8:55:46 PDT"]
[Termination "JiiHart won on time"]

1. d4 {[%clk 0:03:00.9]} 1... d5 {[%clk 0:02:59.2]} 2. c4 {[%clk 0:03:01]} 2...
c5 {[%clk 0:02:59.2]} 3. Nc3 {[%clk 0:03:00.7]} 3... e6 {[%clk 0:02:51.1]} 4.
cxd5 {[%clk 0:02:58]} 4... cxd4 {[%clk 0:02:34.4]} 5. Qxd4 {[%clk 0:02:57.3]}
5... Nc6 {[%clk 0:02:24.6]} 6. Qd1 {[%clk 0:02:51.1]} 6... Nb4 {[%clk
0:02:15.5]} 7. e4 {[%clk 0:02:30.7]} 7... exd5 {[%clk 0:02:12.5]} 8. a3 {[%clk
0:01:29.9]} 8... d4 {[%clk 0:01:48.9]} 9. axb4 {[%clk 0:01:23.1]} 9... dxc3
{[%clk 0:01:47.9]} 10. Qxd8+ {[%clk 0:01:15.1]} 10... Kxd8 {[%clk 0:01:48.8]}
11. bxc3 {[%clk 0:01:14.9]} 11... Nf6 {[%clk 0:01:46.7]} 12. f3 {[%clk
0:01:13.3]} 12... Be6 {[%clk 0:01:35.6]} 13. Be3 {[%clk 0:01:12.5]} 13... Rc8
{[%clk 0:01:29.3]} 14. O-O-O+ {[%clk 0:00:52.5]} 14... Ke8 {[%clk 0:01:23.6]}
15. Kb2 {[%clk 0:00:37]} 15... a6 {[%clk 0:01:14.4]} 16. Ne2 {[%clk 0:00:36.8]}
16... Be7 {[%clk 0:01:14]} 17. Nd4 {[%clk 0:00:35.2]} 17... h6 {[%clk
0:01:09.8]} 18. Nxe6 {[%clk 0:00:29.4]} 18... fxe6 {[%clk 0:01:10]} 19. Kb3
{[%clk 0:00:21.5]} 19... Kf7 {[%clk 0:01:10.2]} 20. Be2 {[%clk 0:00:18.7]} 20...
Rhd8 {[%clk 0:01:10]} 21. Rxd8 {[%clk 0:00:16.8]} 21... Rxd8 {[%clk 0:01:10.1]}
22. Rd1 {[%clk 0:00:17.4]} 22... b5 {[%clk 0:01:09.3]} 23. Rxd8 {[%clk
0:00:16.5]} 23... Bxd8 {[%clk 0:01:10.2]} 24. c4 {[%clk 0:00:16.9]} 24... bxc4+
{[%clk 0:01:04.2]} 25. Bxc4 {[%clk 0:00:17.8]} 25... a5 {[%clk 0:01:01.1]} 26.
b5 {[%clk 0:00:17.4]} 26... Nd7 {[%clk 0:01:01.3]} 27. f4 {[%clk 0:00:11.5]}
27... Nb6 {[%clk 0:01:01.3]} 28. Bc5 {[%clk 0:00:07.2]} 28... Kf6 {[%clk
0:00:52.1]} 29. g4 {[%clk 0:00:05.7]} 29... g5 {[%clk 0:00:50.3]} 30. e5+ {[%clk
0:00:05.3]} 30... Kf7 {[%clk 0:00:43.9]} 31. f5 {[%clk 0:00:04.4]} 31... Nxc4
{[%clk 0:00:42.7]} 32. Kxc4 {[%clk 0:00:04.3]} 32... exf5 {[%clk 0:00:40.5]} 33.
gxf5 {[%clk 0:00:05.2]} 33... h5 {[%clk 0:00:41.1]} 34. b6 {[%clk 0:00:03.3]}
34... g4 {[%clk 0:00:40]} 35. b7 {[%clk 0:00:02.5]} 35... Bc7 {[%clk 0:00:39.6]}
36. Bd6 {[%clk 0:00:02.7]} 36... h4 {[%clk 0:00:24.2]} 37. Bxc7 {[%clk
0:00:02.4]} 37... g3 {[%clk 0:00:25.1]} 0-1